[Event "Titled Tuesday Blitz July 27 2021"]
[White "Tsaruk, Maksim"]
[Black "Zhigalko, Sergei"]
[WhiteFideId "13511173"]
[BlackFideId "13502956"]
[WhiteElo "2184"]
[BlackElo "2662"]
[Result "1/2-1/2"]
[Round "11"]
[TimeControl "180+1"]
[Date "2021.07.27"]
[WhiteClock "0:01:01"]
[BlackClock "0:00:03"]

1. e4 {[%clk 0:03:00]}  c5 {[%clk 0:02:59]} 2. Nf3 {[%clk 0:03:01]}  Nc6 {[%clk 0:03:00]} 3. d4 {[%clk 0:03:02]}  cxd4 {[%clk 0:03:01]} 4. Nxd4 {[%clk 0:03:02]}  Nf6 {[%clk 0:03:01]} 5. Nc3 {[%clk 0:03:03]}  e5 {[%clk 0:03:02]} 6. Ndb5 {[%clk 0:03:04]}  d6 {[%clk 0:03:02]} 7. Bg5 {[%clk 0:03:04]}  a6 {[%clk 0:03:03]} 8. Na3 {[%clk 0:03:05]}  b5 {[%clk 0:03:03]} 9. Nd5 {[%clk 0:03:05]}  Be7 {[%clk 0:03:04]} 10. Bxf6 {[%clk 0:03:06]}  Bxf6 {[%clk 0:03:05]} 11. c3 {[%clk 0:03:07]}  Bg5 {[%clk 0:03:05]} 12. Nc2 {[%clk 0:03:08]}  Ne7 {[%clk 0:03:06]} 13. Nxe7 {[%clk 0:02:46]}  Qxe7 {[%clk 0:03:06]} 14. a4 {[%clk 0:02:46]}  bxa4 {[%clk 0:03:07]} 15. Rxa4 {[%clk 0:02:45]}  O-O {[%clk 0:03:07]} 16. Bc4 {[%clk 0:02:41]}  a5 {[%clk 0:02:54]} 17. O-O {[%clk 0:02:41]}  Bd7 {[%clk 0:02:43]} 18. Ra2 {[%clk 0:02:41]}  Kh8 {[%clk 0:02:36]} 19. Bd5 {[%clk 0:02:36]}  Rab8 {[%clk 0:02:36]} 20. Qa1 {[%clk 0:02:20]}  a4 {[%clk 0:02:26]} 21. Nb4 {[%clk 0:02:15]}  Qe8 {[%clk 0:02:02]} 22. Qd1 {[%clk 0:02:04]}  g6 {[%clk 0:01:45]} 23. Bc4 {[%clk 0:02:04]}  Rb6 {[%clk 0:01:39]} 24. Bd3 {[%clk 0:02:03]}  f5 {[%clk 0:01:17]} 25. exf5 {[%clk 0:02:03]}  gxf5 {[%clk 0:01:17]} 26. Bc2 {[%clk 0:02:03]}  Qf7 {[%clk 0:00:58]} 27. Bxa4 {[%clk 0:01:56]}  Be6 {[%clk 0:00:58]} 28. Ra1 {[%clk 0:01:57]}  Rg8 {[%clk 0:00:53]} 29. Bc6 {[%clk 0:01:52]}  Bf4 {[%clk 0:00:34]} 30. Bd5 {[%clk 0:01:40]}  Rxb4 {[%clk 0:00:02]} 31. Bxe6 {[%clk 0:01:38]}  Qxe6 {[%clk 0:00:02]} 32. cxb4 {[%clk 0:01:38]}  e4 {[%clk 0:00:03]} 33. Ra5 {[%clk 0:01:19]}  Bxh2+ {[%clk 0:00:02]} 34. Kxh2 {[%clk 0:01:17]}  Qh6+ {[%clk 0:00:02]} 35. Kg1 {[%clk 0:01:18]}  Rxg2+ {[%clk 0:00:02]} 36. Kxg2 {[%clk 0:01:17]}  Qg5+ {[%clk 0:00:02]} 37. Kh3 {[%clk 0:01:09]}  Qh6+ {[%clk 0:00:02]} 38. Kg3 {[%clk 0:01:01]}  Qg5+ {[%clk 0:00:03]} 1/2-1/2


[Site "https://www.chess.com"]

[Event "Titled Tuesday Blitz July 27 2021"]
[White "Vlassov, Nikolai"]
[Black "Kobo, Ori"]
[WhiteFideId "4103360"]
[BlackFideId "2812320"]
[WhiteElo "2407"]
[BlackElo "2431"]
[Result "1-0"]
[Round "11"]
[TimeControl "180+1"]
[Date "2021.07.27"]
[WhiteClock "0:00:31"]
[BlackClock "0:00:02"]

1. e4 {[%clk 0:03:00]}  g6 {[%clk 0:03:00]} 2. h4 {[%clk 0:03:00]}  Nf6 {[%clk 0:02:59]} 3. e5 {[%clk 0:03:00]}  Nh5 {[%clk 0:02:59]} 4. g4 {[%clk 0:02:58]}  Ng7 {[%clk 0:02:53]} 5. h5 {[%clk 0:02:58]}  gxh5 {[%clk 0:02:54]} 6. gxh5 {[%clk 0:02:59]}  d6 {[%clk 0:02:54]} 7. f4 {[%clk 0:02:48]}  dxe5 {[%clk 0:02:43]} 8. fxe5 {[%clk 0:02:48]}  Nc6 {[%clk 0:02:43]} 9. Nc3 {[%clk 0:02:31]}  Nxe5 {[%clk 0:02:36]} 10. d4 {[%clk 0:02:31]}  Bg4 {[%clk 0:02:28]} 11. Be2 {[%clk 0:02:30]}  Bxe2 {[%clk 0:02:24]} 12. Qxe2 {[%clk 0:02:26]}  Qxd4 {[%clk 0:02:17]} 13. Nb5 {[%clk 0:02:26]}  Qc5 {[%clk 0:01:55]} 14. Be3 {[%clk 0:02:23]}  Qc6 {[%clk 0:01:40]} 15. Bf4 {[%clk 0:02:13]}  f6 {[%clk 0:01:10]} 16. Bxe5 {[%clk 0:02:02]}  fxe5 {[%clk 0:01:10]} 17. Qxe5 {[%clk 0:02:00]}  Ne6 {[%clk 0:00:48]} 18. O-O-O {[%clk 0:01:34]}  Bg7 {[%clk 0:00:48]} 19. Qxe6 {[%clk 0:01:28]}  Qxe6 {[%clk 0:00:48]} 20. Nxc7+ {[%clk 0:01:27]}  Kf7 {[%clk 0:00:48]} 21. Nxe6 {[%clk 0:01:27]}  Kxe6 {[%clk 0:00:49]} 22. Nf3 {[%clk 0:01:24]}  Bf6 {[%clk 0:00:48]} 23. Rhe1+ {[%clk 0:01:22]}  Kf7 {[%clk 0:00:48]} 24. Ne5+ {[%clk 0:01:23]}  Bxe5 {[%clk 0:00:33]} 25. Rxe5 {[%clk 0:01:23]}  Rhd8 {[%clk 0:00:34]} 26. Rf1+ {[%clk 0:01:20]}  Ke8 {[%clk 0:00:29]} 27. Rg1 {[%clk 0:01:17]}  Kf7 {[%clk 0:00:22]} 28. h6 {[%clk 0:01:08]}  Kf6 {[%clk 0:00:11]} 29. Re3 {[%clk 0:00:56]}  Rg8 {[%clk 0:00:11]} 30. Rf1+ {[%clk 0:00:46]}  Kg5 {[%clk 0:00:11]} 31. Rxe7 {[%clk 0:00:41]}  Kxh6 {[%clk 0:00:05]} 32. Rh1+ {[%clk 0:00:40]}  Kg5 {[%clk 0:00:05]} 33. Rhxh7 {[%clk 0:00:40]}  Rad8 {[%clk 0:00:04]} 34. Rxb7 {[%clk 0:00:38]}  Rgf8 {[%clk 0:00:04]} 35. Rbg7+ {[%clk 0:00:36]}  Kf4 {[%clk 0:00:03]} 36. Rxa7 {[%clk 0:00:36]}  Rg8 {[%clk 0:00:02]} 37. Raf7+ {[%clk 0:00:35]}  Ke5 {[%clk 0:00:02]} 38. b3 {[%clk 0:00:34]}  Rg1+ {[%clk 0:00:02]} 39. Kb2 {[%clk 0:00:34]}  Rg2 {[%clk 0:00:03]} 40. Rc7 {[%clk 0:00:34]}  Rd1 {[%clk 0:00:03]} 41. Rc4 {[%clk 0:00:33]}  Rgg1 {[%clk 0:00:03]} 42. Rh5+ {[%clk 0:00:33]}  Ke6 {[%clk 0:00:03]} 43. Rc6+ {[%clk 0:00:32]}  Kd7 {[%clk 0:00:03]} 44. Ra6 {[%clk 0:00:31]}  Rb1+ {[%clk 0:00:02]} 45. Ka3 {[%clk 0:00:31]} 1-0


[Site "https://www.chess.com"]

[Event "Titled Tuesday Blitz July 27 2021"]
[White "Volkov, Maksim"]
[Black "Piesik, Piotr"]
[WhiteFideId "54123070"]
[BlackFideId "1136194"]
[WhiteElo "2113"]
[BlackElo "2354"]
[Result "1-0"]
[Round "11"]
[TimeControl "180+1"]
[Date "2021.07.27"]
[WhiteClock "0:00:18"]
[BlackClock "0:00:04"]

1. d4 {[%clk 0:03:00]}  c5 {[%clk 0:02:57]} 2. d5 {[%clk 0:02:57]}  e5 {[%clk 0:02:57]} 3. e4 {[%clk 0:02:49]}  d6 {[%clk 0:02:55]} 4. h3 {[%clk 0:02:47]}  Be7 {[%clk 0:02:55]} 5. Nf3 {[%clk 0:02:47]}  Nf6 {[%clk 0:02:53]} 6. Nc3 {[%clk 0:02:44]}  O-O {[%clk 0:02:53]} 7. Bd3 {[%clk 0:02:43]}  Na6 {[%clk 0:02:43]} 8. a3 {[%clk 0:02:40]}  Nc7 {[%clk 0:02:43]} 9. a4 {[%clk 0:02:35]}  b6 {[%clk 0:02:42]} 10. g4 {[%clk 0:02:29]}  a6 {[%clk 0:02:39]} 11. Ne2 {[%clk 0:02:26]}  b5 {[%clk 0:02:37]} 12. axb5 {[%clk 0:02:25]}  axb5 {[%clk 0:02:37]} 13. Rxa8 {[%clk 0:02:25]}  Nxa8 {[%clk 0:02:38]} 14. Ng3 {[%clk 0:02:23]}  c4 {[%clk 0:02:37]} 15. Be2 {[%clk 0:02:23]}  Nb6 {[%clk 0:02:33]} 16. O-O {[%clk 0:02:20]}  Nfd7 {[%clk 0:02:30]} 17. Be3 {[%clk 0:02:18]}  Qc7 {[%clk 0:02:26]} 18. Nf5 {[%clk 0:02:11]}  Re8 {[%clk 0:02:26]} 19. b4 {[%clk 0:01:49]}  cxb3 {[%clk 0:02:21]} 20. cxb3 {[%clk 0:01:48]}  Nc5 {[%clk 0:02:19]} 21. Ng3 {[%clk 0:01:48]}  Bd7 {[%clk 0:02:13]} 22. Qb1 {[%clk 0:01:44]}  b4 {[%clk 0:02:00]} 23. Rc1 {[%clk 0:01:42]}  Ra8 {[%clk 0:01:56]} 24. Bd2 {[%clk 0:01:34]}  Qb7 {[%clk 0:01:14]} 25. Bxb4 {[%clk 0:01:33]}  Na6 {[%clk 0:01:14]} 26. Bd2 {[%clk 0:01:23]}  Nc8 {[%clk 0:01:09]} 27. Nf5 {[%clk 0:01:08]}  Bxf5 {[%clk 0:01:07]} 28. gxf5 {[%clk 0:01:08]}  Na7 {[%clk 0:01:02]} 29. Qa2 {[%clk 0:00:57]}  Nb5 {[%clk 0:00:56]} 30. Qa5 {[%clk 0:00:52]}  Nac7 {[%clk 0:00:53]} 31. Qb4 {[%clk 0:00:49]}  Rb8 {[%clk 0:00:51]} 32. Bxb5 {[%clk 0:00:40]}  Nxb5 {[%clk 0:00:45]} 33. Kg2 {[%clk 0:00:40]}  Bd8 {[%clk 0:00:40]} 34. Rc6 {[%clk 0:00:37]}  Bc7 {[%clk 0:00:39]} 35. Qc4 {[%clk 0:00:34]}  Bd8 {[%clk 0:00:24]} 36. b4 {[%clk 0:00:26]}  f6 {[%clk 0:00:24]} 37. h4 {[%clk 0:00:25]}  Kf7 {[%clk 0:00:23]} 38. Qc1 {[%clk 0:00:23]}  Ke7 {[%clk 0:00:20]} 39. Ne1 {[%clk 0:00:22]}  Na7 {[%clk 0:00:19]} 40. Rc4 {[%clk 0:00:21]}  Bb6 {[%clk 0:00:19]} 41. Nd3 {[%clk 0:00:21]}  Rc8 {[%clk 0:00:17]} 42. Nb2 {[%clk 0:00:21]}  Rxc4 {[%clk 0:00:16]} 43. Qxc4 {[%clk 0:00:21]}  Kd7 {[%clk 0:00:15]} 44. Kf3 {[%clk 0:00:21]}  Bd4 {[%clk 0:00:15]} 45. Nd3 {[%clk 0:00:20]}  Qb5 {[%clk 0:00:14]} 46. Qxb5+ {[%clk 0:00:20]}  Nxb5 {[%clk 0:00:15]} 47. h5 {[%clk 0:00:20]}  Kc7 {[%clk 0:00:14]} 48. h6 {[%clk 0:00:20]}  gxh6 {[%clk 0:00:06]} 49. Bxh6 {[%clk 0:00:21]}  Kd7 {[%clk 0:00:06]} 50. Bd2 {[%clk 0:00:21]}  Bb6 {[%clk 0:00:05]} 51. Kg4 {[%clk 0:00:21]}  Ke7 {[%clk 0:00:04]} 52. Kh5 {[%clk 0:00:20]}  Kf7 {[%clk 0:00:04]} 53. Kh6 {[%clk 0:00:21]}  Kg8 {[%clk 0:00:05]} 54. f4 {[%clk 0:00:21]}  Nd4 {[%clk 0:00:03]} 55. fxe5 {[%clk 0:00:20]}  dxe5 {[%clk 0:00:04]} 56. Be3 {[%clk 0:00:19]}  Nxf5+ {[%clk 0:00:03]} 57. exf5 {[%clk 0:00:19]}  Bxe3+ {[%clk 0:00:04]} 58. Kh5 {[%clk 0:00:20]}  Kf7 {[%clk 0:00:04]} 59. b5 {[%clk 0:00:19]}  Ke7 {[%clk 0:00:04]} 60. Kg4 {[%clk 0:00:18]} 1-0


[Site "https://www.chess.com"]

[Event "Titled Tuesday Blitz July 27 2021"]
[White "Wiewiora, Eneasz"]
[Black "Gokerkan, Cem Kaan"]
[WhiteFideId "1140396"]
[BlackFideId "6336760"]
[WhiteElo "2312"]
[BlackElo "2361"]
[Result "1-0"]
[Round "11"]
[TimeControl "180+1"]
[Date "2021.07.27"]
[WhiteClock "0:00:03"]
[BlackClock "0:00:02"]

1. e4 {[%clk 0:03:00]}  e5 {[%clk 0:02:59]} 2. Nf3 {[%clk 0:03:00]}  Nc6 {[%clk 0:02:59]} 3. Bc4 {[%clk 0:03:01]}  Bc5 {[%clk 0:02:59]} 4. O-O {[%clk 0:03:01]}  Nf6 {[%clk 0:02:59]} 5. d3 {[%clk 0:03:00]}  d6 {[%clk 0:02:58]} 6. c3 {[%clk 0:02:57]}  a6 {[%clk 0:02:57]} 7. a4 {[%clk 0:02:57]}  h6 {[%clk 0:02:52]} 8. Nbd2 {[%clk 0:02:57]}  O-O {[%clk 0:02:52]} 9. h3 {[%clk 0:02:55]}  Be6 {[%clk 0:02:52]} 10. Re1 {[%clk 0:02:55]}  Ba7 {[%clk 0:02:49]} 11. b4 {[%clk 0:02:49]}  Re8 {[%clk 0:02:44]} 12. Qb3 {[%clk 0:02:47]}  d5 {[%clk 0:02:37]} 13. exd5 {[%clk 0:02:46]}  Bxd5 {[%clk 0:02:38]} 14. Ne4 {[%clk 0:02:43]}  Nxe4 {[%clk 0:02:16]} 15. dxe4 {[%clk 0:02:13]}  Bxc4 {[%clk 0:02:12]} 16. Qxc4 {[%clk 0:02:14]}  Qf6 {[%clk 0:02:08]} 17. Be3 {[%clk 0:02:11]}  b5 {[%clk 0:01:30]} 18. Qe2 {[%clk 0:02:01]}  Bxe3 {[%clk 0:01:28]} 19. Qxe3 {[%clk 0:02:02]}  Qe7 {[%clk 0:01:19]} 20. g3 {[%clk 0:01:55]}  Red8 {[%clk 0:01:17]} 21. Kg2 {[%clk 0:01:52]}  Qe6 {[%clk 0:01:08]} 22. axb5 {[%clk 0:01:35]}  axb5 {[%clk 0:01:08]} 23. Rxa8 {[%clk 0:01:35]}  Rxa8 {[%clk 0:01:09]} 24. Qc5 {[%clk 0:01:36]}  Rb8 {[%clk 0:00:27]} 25. Ra1 {[%clk 0:01:35]}  f6 {[%clk 0:00:23]} 26. Ra6 {[%clk 0:01:33]}  Rb6 {[%clk 0:00:24]} 27. Rxb6 {[%clk 0:01:17]}  cxb6 {[%clk 0:00:25]} 28. Qxb6 {[%clk 0:01:18]}  Qc4 {[%clk 0:00:25]} 29. Qe3 {[%clk 0:01:03]}  Kf7 {[%clk 0:00:21]} 30. h4 {[%clk 0:01:01]}  h5 {[%clk 0:00:21]} 31. Nd2 {[%clk 0:00:59]}  Qa2 {[%clk 0:00:21]} 32. Qd3 {[%clk 0:00:56]}  Ne7 {[%clk 0:00:21]} 33. Nf1 {[%clk 0:00:51]}  Qb3 {[%clk 0:00:17]} 34. Ne3 {[%clk 0:00:48]}  Qa4 {[%clk 0:00:15]} 35. Qd7 {[%clk 0:00:44]}  Kf8 {[%clk 0:00:14]} 36. Qd8+ {[%clk 0:00:40]}  Kf7 {[%clk 0:00:14]} 37. Qd7 {[%clk 0:00:41]}  Kf8 {[%clk 0:00:15]} 38. Nd5 {[%clk 0:00:41]}  Nxd5 {[%clk 0:00:14]} 39. exd5 {[%clk 0:00:41]}  Qc2 {[%clk 0:00:11]} 40. Qc8+ {[%clk 0:00:27]}  Kf7 {[%clk 0:00:10]} 41. Qb7+ {[%clk 0:00:28]}  Kg6 {[%clk 0:00:07]} 42. d6 {[%clk 0:00:28]}  Qd3 {[%clk 0:00:07]} 43. d7 {[%clk 0:00:25]}  e4 {[%clk 0:00:07]} 44. Qc6 {[%clk 0:00:14]}  Kh7 {[%clk 0:00:05]} 45. Qe6 {[%clk 0:00:12]}  Qf3+ {[%clk 0:00:02]} 46. Kg1 {[%clk 0:00:10]}  e3 {[%clk 0:00:02]} 47. Qxe3 {[%clk 0:00:09]}  Qd1+ {[%clk 0:00:03]} 48. Kg2 {[%clk 0:00:10]}  Qxd7 {[%clk 0:00:04]} 49. Qe4+ {[%clk 0:00:10]}  Kg8 {[%clk 0:00:04]} 50. Qf3 {[%clk 0:00:09]}  Kh8 {[%clk 0:00:03]} 51. Qxh5+ {[%clk 0:00:08]}  Kg8 {[%clk 0:00:04]} 52. Qf3 {[%clk 0:00:09]}  Kh8 {[%clk 0:00:04]} 53. h5 {[%clk 0:00:10]}  Kg8 {[%clk 0:00:04]} 54. h6 {[%clk 0:00:10]}  gxh6 {[%clk 0:00:05]} 55. Qxf6 {[%clk 0:00:10]}  Qd5+ {[%clk 0:00:05]} 56. Qf3 {[%clk 0:00:10]}  Qc4 {[%clk 0:00:06]} 57. Qe3 {[%clk 0:00:08]}  Kh7 {[%clk 0:00:05]} 58. Kf3 {[%clk 0:00:07]}  Qf7+ {[%clk 0:00:04]} 59. Qf4 {[%clk 0:00:06]}  Qb3 {[%clk 0:00:04]} 60. Qe4+ {[%clk 0:00:06]}  Kg7 {[%clk 0:00:04]} 61. Qe5+ {[%clk 0:00:07]}  Kg6 {[%clk 0:00:04]} 62. Kg2 {[%clk 0:00:05]}  h5 {[%clk 0:00:03]} 63. Qxb5 {[%clk 0:00:04]}  Qxc3 {[%clk 0:00:03]} 64. Qb6+ {[%clk 0:00:04]}  Kg7 {[%clk 0:00:03]} 65. Qc5 {[%clk 0:00:05]}  Qd3 {[%clk 0:00:02]} 66. Qg5+ {[%clk 0:00:04]}  Kf8 {[%clk 0:00:01]} 67. Qxh5 {[%clk 0:00:03]}  Qe4+ {[%clk 0:00:02]} 68. Qf3+ {[%clk 0:00:03]} 1-0